[Event "January 9 Late 2024"]
[Site "https://www.chess.com"]
[Date "2024.01.10"]
[Round "7"]
[White "Hoeffer, David"]
[Black "Niedbala, Bartlomiej"]
[Result "0-1"]
[Board "62"]
[TimeControl "180+1"]
[WhiteFideId "24606766"]
[BlackFideId "21834008"]
[WhiteElo "2470"]
[BlackElo "2685"]
[WhiteTeam "GER"]
[BlackTeam "POL"]
[WhiteClock "0:00:11"]
[BlackClock "0:00:24"]

1. e4 {[%clk 0:02:29]}  g6 {[%clk 0:03:00]} 2. d4 {[%clk 0:02:29]}  Bg7 {[%clk 0:03:01]} 3. Nf3 {[%clk 0:02:30]}  c6 {[%clk 0:03:00]} 4. Be2 {[%clk 0:02:27]}  d5 {[%clk 0:03:00]} 5. e5 {[%clk 0:02:26]}  Bg4 {[%clk 0:03:01]} 6. h3 {[%clk 0:02:25]}  Bxf3 {[%clk 0:03:01]} 7. Bxf3 {[%clk 0:02:26]}  e6 {[%clk 0:03:01]} 8. c3 {[%clk 0:02:24]}  Nd7 {[%clk 0:03:01]} 9. O-O {[%clk 0:02:24]}  Ne7 {[%clk 0:03:00]} 10. Bg5 {[%clk 0:02:20]}  h6 {[%clk 0:03:00]} 11. Be3 {[%clk 0:02:18]}  Nf5 {[%clk 0:03:00]} 12. Nd2 {[%clk 0:02:17]}  c5 {[%clk 0:02:59]} 13. Nb3 {[%clk 0:02:15]}  cxd4 {[%clk 0:02:51]} 14. cxd4 {[%clk 0:02:13]}  Rc8 {[%clk 0:02:47]} 15. Qd2 {[%clk 0:02:07]}  Nb6 {[%clk 0:02:46]} 16. Be2 {[%clk 0:02:05]}  O-O {[%clk 0:02:34]} 17. Rfc1 {[%clk 0:02:03]}  Nd7 {[%clk 0:02:07]} 18. Rxc8 {[%clk 0:01:50]}  Qxc8 {[%clk 0:02:08]} 19. Rc1 {[%clk 0:01:50]}  Qd8 {[%clk 0:02:06]} 20. f4 {[%clk 0:01:40]}  Nxe3 {[%clk 0:02:01]} 21. Qxe3 {[%clk 0:01:41]}  Nb8 {[%clk 0:01:54]} 22. Kh2 {[%clk 0:01:37]}  h5 {[%clk 0:01:54]} 23. g3 {[%clk 0:01:35]}  Nc6 {[%clk 0:01:49]} 24. h4 {[%clk 0:01:33]}  Qb6 {[%clk 0:01:46]} 25. Qc3 {[%clk 0:01:26]}  Rc8 {[%clk 0:01:40]} 26. Nc5 {[%clk 0:01:26]}  Bf8 {[%clk 0:01:31]} 27. Nd7 {[%clk 0:01:16]}  Qd8 {[%clk 0:01:27]} 28. Nxf8 {[%clk 0:00:47]}  Kxf8 {[%clk 0:01:20]} 29. a3 {[%clk 0:00:48]}  Ne7 {[%clk 0:01:20]} 30. Qd2 {[%clk 0:00:46]}  Rxc1 {[%clk 0:01:15]} 31. Qxc1 {[%clk 0:00:47]}  Qb6 {[%clk 0:01:15]} 32. Qc3 {[%clk 0:00:37]}  Nc6 {[%clk 0:01:14]} 33. b4 {[%clk 0:00:29]}  Qxd4 {[%clk 0:01:12]} 34. Qc2 {[%clk 0:00:27]}  Qf2+ {[%clk 0:01:09]} 35. Kh3 {[%clk 0:00:27]}  Nd4 {[%clk 0:01:02]} 36. Qc5+ {[%clk 0:00:27]}  Kg7 {[%clk 0:00:58]} 37. Bb5 {[%clk 0:00:20]}  b6 {[%clk 0:00:48]} 38. Qe7 {[%clk 0:00:16]}  Qxg3+ {[%clk 0:00:38]} 39. Kxg3 {[%clk 0:00:14]}  Nf5+ {[%clk 0:00:39]} 40. Kh3 {[%clk 0:00:14]}  Nxe7 {[%clk 0:00:40]} 41. Bd7 {[%clk 0:00:12]}  Nf5 {[%clk 0:00:38]} 42. a4 {[%clk 0:00:09]}  Kf8 {[%clk 0:00:38]} 43. a5 {[%clk 0:00:09]}  Ke7 {[%clk 0:00:36]} 44. Bb5 {[%clk 0:00:10]}  Nd4 {[%clk 0:00:35]} 45. Bd3 {[%clk 0:00:10]}  bxa5 {[%clk 0:00:30]} 46. bxa5 {[%clk 0:00:11]}  Nc6 {[%clk 0:00:31]} 47. a6 {[%clk 0:00:10]}  Nd4 {[%clk 0:00:31]} 48. Kg3 {[%clk 0:00:10]}  Kd7 {[%clk 0:00:31]} 49. Kf2 {[%clk 0:00:11]}  Nf5 {[%clk 0:00:28]} 50. Bb5+ {[%clk 0:00:08]}  Ke7 {[%clk 0:00:28]} 51. Ke2 {[%clk 0:00:07]}  Nxh4 {[%clk 0:00:28]} 52. Kd3 {[%clk 0:00:08]}  Ng2 {[%clk 0:00:28]} 53. Kc3 {[%clk 0:00:09]}  h4 {[%clk 0:00:28]} 54. Kb4 {[%clk 0:00:10]}  Kd8 {[%clk 0:00:23]} 55. Kc5 {[%clk 0:00:11]}  Kc7 {[%clk 0:00:23]} 56. Be8 {[%clk 0:00:10]}  h3 {[%clk 0:00:23]} 57. Bxf7 {[%clk 0:00:11]}  Nxf4 {[%clk 0:00:23]} 58. Bxe6 {[%clk 0:00:11]}  Nxe6+ {[%clk 0:00:24]} 0-1

[Event "January 9 Late 2024"]
[Site "https://www.chess.com"]
[Date "2024.01.09"]
[Round "7"]
[White "Poltorak, Sebastian"]
[Black "Sargsyan, Shant"]
[Result "1/2-1/2"]
[Board "65"]
[TimeControl "180+1"]
[WhiteFideId "1199498"]
[BlackFideId "13306766"]
[WhiteElo "2626"]
[BlackElo "2889"]
[WhiteTeam "POL"]
[BlackTeam "ARM"]
[WhiteClock "0:00:10"]
[BlackClock "0:00:57"]

1. d4 {[%clk 0:02:55]}  b5 {[%clk 0:03:00]} 2. Nf3 {[%clk 0:02:45]}  Bb7 {[%clk 0:03:00]} 3. e3 {[%clk 0:02:46]}  a6 {[%clk 0:02:58]} 4. Be2 {[%clk 0:02:44]}  Nf6 {[%clk 0:02:58]} 5. O-O {[%clk 0:02:44]}  e6 {[%clk 0:02:58]} 6. b3 {[%clk 0:02:44]}  c5 {[%clk 0:02:57]} 7. c4 {[%clk 0:02:43]}  b4 {[%clk 0:02:56]} 8. Bb2 {[%clk 0:02:42]}  Be7 {[%clk 0:02:54]} 9. Nbd2 {[%clk 0:02:41]}  O-O {[%clk 0:02:55]} 10. Qc2 {[%clk 0:02:41]}  d6 {[%clk 0:02:52]} 11. Rfd1 {[%clk 0:02:36]}  Qc7 {[%clk 0:02:51]} 12. Bd3 {[%clk 0:02:31]}  Nbd7 {[%clk 0:02:48]} 13. Ne4 {[%clk 0:02:28]}  h6 {[%clk 0:02:46]} 14. dxc5 {[%clk 0:02:18]}  dxc5 {[%clk 0:02:43]} 15. Rd2 {[%clk 0:02:10]}  Qc6 {[%clk 0:02:22]} 16. Rad1 {[%clk 0:01:33]}  Nxe4 {[%clk 0:02:20]} 17. Bxe4 {[%clk 0:01:33]}  Qxe4 {[%clk 0:02:21]} 18. Qxe4 {[%clk 0:01:33]}  Bxe4 {[%clk 0:02:22]} 19. Rxd7 {[%clk 0:01:33]}  Rfd8 {[%clk 0:02:18]} 20. Rxd8+ {[%clk 0:01:18]}  Rxd8 {[%clk 0:02:19]} 21. Rxd8+ {[%clk 0:01:18]}  Bxd8 {[%clk 0:02:20]} 22. Nd2 {[%clk 0:01:19]}  Bc6 {[%clk 0:02:20]} 23. f3 {[%clk 0:01:18]}  f6 {[%clk 0:02:20]} 24. e4 {[%clk 0:01:15]}  Kf7 {[%clk 0:02:21]} 25. Kf2 {[%clk 0:01:15]}  Bc7 {[%clk 0:02:21]} 26. g3 {[%clk 0:01:12]}  a5 {[%clk 0:02:21]} 27. Ke3 {[%clk 0:01:12]}  a4 {[%clk 0:02:21]} 28. f4 {[%clk 0:01:08]}  g5 {[%clk 0:02:16]} 29. Bc1 {[%clk 0:01:03]}  g4 {[%clk 0:02:15]} 30. Bb2 {[%clk 0:00:49]}  h5 {[%clk 0:02:14]} 31. Bc1 {[%clk 0:00:49]}  Bd8 {[%clk 0:02:10]} 32. Bb2 {[%clk 0:00:48]}  Ke8 {[%clk 0:02:08]} 33. Bc1 {[%clk 0:00:45]}  Kd7 {[%clk 0:02:08]} 34. Bb2 {[%clk 0:00:45]}  Kc7 {[%clk 0:02:08]} 35. Bc1 {[%clk 0:00:45]}  Kb6 {[%clk 0:02:08]} 36. Bb2 {[%clk 0:00:45]}  Be7 {[%clk 0:02:03]} 37. e5 {[%clk 0:00:36]}  f5 {[%clk 0:01:59]} 38. Bc1 {[%clk 0:00:35]}  a3 {[%clk 0:01:56]} 39. Kf2 {[%clk 0:00:34]}  h4 {[%clk 0:01:55]} 40. Ke3 {[%clk 0:00:31]}  Kc7 {[%clk 0:01:56]} 41. Kf2 {[%clk 0:00:31]}  Kd8 {[%clk 0:01:56]} 42. Ke3 {[%clk 0:00:32]}  Ke8 {[%clk 0:01:57]} 43. Kf2 {[%clk 0:00:32]}  Bd8 {[%clk 0:01:56]} 44. Ke3 {[%clk 0:00:29]}  Kf7 {[%clk 0:01:57]} 45. Kf2 {[%clk 0:00:30]}  Kg6 {[%clk 0:01:57]} 46. Ke3 {[%clk 0:00:29]}  Be7 {[%clk 0:01:57]} 47. Kf2 {[%clk 0:00:29]}  Be4 {[%clk 0:01:57]} 48. Nxe4 {[%clk 0:00:22]}  fxe4 {[%clk 0:01:58]} 49. Ke3 {[%clk 0:00:22]}  Kf5 {[%clk 0:01:58]} 50. Bd2 {[%clk 0:00:23]}  Bf8 {[%clk 0:01:45]} 51. Be1 {[%clk 0:00:16]}  Bh6 {[%clk 0:01:45]} 52. Bf2 {[%clk 0:00:16]}  h3 {[%clk 0:01:39]} 53. Be1 {[%clk 0:00:16]}  Bf8 {[%clk 0:01:38]} 54. Bd2 {[%clk 0:00:16]}  Be7 {[%clk 0:01:38]} 55. Be1 {[%clk 0:00:17]}  Bd8 {[%clk 0:01:35]} 56. Bf2 {[%clk 0:00:17]}  Bc7 {[%clk 0:01:34]} 57. Ke2 {[%clk 0:00:17]}  e3 {[%clk 0:01:31]} 58. Bxe3 {[%clk 0:00:17]}  Bb6 {[%clk 0:01:29]} 59. Kd3 {[%clk 0:00:17]}  Ba7 {[%clk 0:01:29]} 60. Bf2 {[%clk 0:00:17]}  Bb6 {[%clk 0:01:30]} 61. Be1 {[%clk 0:00:17]}  Bd8 {[%clk 0:01:29]} 62. Bd2 {[%clk 0:00:17]}  Bh4 {[%clk 0:01:20]} 63. Be1 {[%clk 0:00:13]}  Be7 {[%clk 0:01:20]} 64. Bf2 {[%clk 0:00:13]}  Bf8 {[%clk 0:01:20]} 65. Ke3 {[%clk 0:00:13]}  Bh6 {[%clk 0:01:17]} 66. Ke2 {[%clk 0:00:11]}  Bf8 {[%clk 0:01:14]} 67. Kd3 {[%clk 0:00:11]}  Be7 {[%clk 0:01:14]} 68. Ke3 {[%clk 0:00:11]}  Bd8 {[%clk 0:01:10]} 69. Be1 {[%clk 0:00:11]}  Be7 {[%clk 0:01:07]} 70. Bd2 {[%clk 0:00:12]}  Bh4 {[%clk 0:01:01]} 71. Be1 {[%clk 0:00:09]}  Bd8 {[%clk 0:01:00]} 72. Kd3 {[%clk 0:00:09]}  Be7 {[%clk 0:00:57]} 73. Bf2 {[%clk 0:00:09]}  Bf8 {[%clk 0:00:58]} 74. Be3 {[%clk 0:00:10]}  Be7 {[%clk 0:00:57]} 75. Bf2 {[%clk 0:00:10]} 1/2-1/2

[Event "January 9 Late 2024"]
[Site "https://www.chess.com"]
[Date "2024.01.09"]
[Round "7"]
[White "Ghasi, Ameet K"]
[Black "Olenik Campa, Rudi"]
[Result "1-0"]
[Board "68"]
[TimeControl "180+1"]
[WhiteFideId "409200"]
[BlackFideId "14633264"]
[WhiteElo "2761"]
[BlackElo "2597"]
[WhiteTeam "ENG"]
[BlackTeam "SLO"]
[WhiteClock "0:00:47"]
[BlackClock "0:00:05"]

1. Nf3 {[%clk 0:03:00]}  g6 {[%clk 0:03:00]} 2. h4 {[%clk 0:03:00]}  h6 {[%clk 0:02:58]} 3. e4 {[%clk 0:02:58]}  Bg7 {[%clk 0:02:58]} 4. d4 {[%clk 0:02:58]}  c6 {[%clk 0:02:56]} 5. c4 {[%clk 0:02:56]}  d6 {[%clk 0:02:53]} 6. Nc3 {[%clk 0:02:55]}  Nd7 {[%clk 0:02:53]} 7. Be2 {[%clk 0:02:48]}  Ngf6 {[%clk 0:02:53]} 8. e5 {[%clk 0:02:44]}  dxe5 {[%clk 0:02:51]} 9. dxe5 {[%clk 0:02:44]}  Ng4 {[%clk 0:02:45]} 10. e6 {[%clk 0:02:44]}  fxe6 {[%clk 0:02:46]} 11. Qc2 {[%clk 0:02:35]}  Nf8 {[%clk 0:02:36]} 12. Bd3 {[%clk 0:02:20]}  Kf7 {[%clk 0:02:26]} 13. Bf4 {[%clk 0:02:19]}  e5 {[%clk 0:01:57]} 14. Bg3 {[%clk 0:02:18]}  Be6 {[%clk 0:01:56]} 15. O-O-O {[%clk 0:02:18]}  Qa5 {[%clk 0:01:54]} 16. Rhe1 {[%clk 0:02:14]}  Bf6 {[%clk 0:01:38]} 17. Kb1 {[%clk 0:02:08]}  Rg8 {[%clk 0:01:32]} 18. Ne4 {[%clk 0:02:01]}  Nd7 {[%clk 0:01:31]} 19. a3 {[%clk 0:01:53]}  Rac8 {[%clk 0:01:24]} 20. Nfd2 {[%clk 0:01:39]}  h5 {[%clk 0:01:18]} 21. Nb3 {[%clk 0:01:24]}  Qa4 {[%clk 0:01:00]} 22. Ng5+ {[%clk 0:01:02]}  Bxg5 {[%clk 0:01:00]} 23. hxg5 {[%clk 0:01:02]}  b5 {[%clk 0:01:00]} 24. Nd2 {[%clk 0:01:02]}  Qxc2+ {[%clk 0:00:57]} 25. Bxc2 {[%clk 0:01:02]}  e4 {[%clk 0:00:28]} 26. Nxe4 {[%clk 0:00:57]}  Bf5 {[%clk 0:00:28]} 27. Nc3 {[%clk 0:00:50]}  Bxc2+ {[%clk 0:00:08]} 28. Kxc2 {[%clk 0:00:51]}  h4 {[%clk 0:00:08]} 29. Bxh4 {[%clk 0:00:50]}  Nge5 {[%clk 0:00:07]} 30. f4 {[%clk 0:00:49]}  Rh8 {[%clk 0:00:05]} 31. Bg3 {[%clk 0:00:47]}  Nxc4 {[%clk 0:00:05]} 1-0

[Event "January 9 Late 2024"]
[Site "https://www.chess.com"]
[Date "2024.01.09"]
[Round "7"]
[White "Timmermans, Mark"]
[Black "Kokoszczynski, Jan"]
[Result "1-0"]
[Board "69"]
[TimeControl "180+1"]
[WhiteFideId "1026399"]
[BlackFideId "1174460"]
[WhiteElo "2747"]
[BlackElo "2588"]
[WhiteTeam "NED"]
[BlackTeam "POL"]
[WhiteClock "0:01:18"]
[BlackClock "0:00:08"]

1. b4 {[%clk 0:02:59]}  e5 {[%clk 0:02:57]} 2. Bb2 {[%clk 0:02:59]}  d6 {[%clk 0:02:45]} 3. b5 {[%clk 0:02:58]}  g6 {[%clk 0:02:44]} 4. a4 {[%clk 0:02:58]}  Bg7 {[%clk 0:02:44]} 5. e3 {[%clk 0:02:59]}  Nf6 {[%clk 0:02:39]} 6. c4 {[%clk 0:02:59]}  O-O {[%clk 0:02:38]} 7. Nc3 {[%clk 0:02:56]}  Be6 {[%clk 0:02:26]} 8. Nf3 {[%clk 0:02:56]}  c6 {[%clk 0:02:13]} 9. Be2 {[%clk 0:02:54]}  Re8 {[%clk 0:02:09]} 10. O-O {[%clk 0:02:46]}  Nbd7 {[%clk 0:02:01]} 11. d4 {[%clk 0:02:46]}  e4 {[%clk 0:01:29]} 12. Nd2 {[%clk 0:02:46]}  d5 {[%clk 0:01:29]} 13. Ba3 {[%clk 0:02:42]}  h5 {[%clk 0:01:26]} 14. bxc6 {[%clk 0:02:42]}  bxc6 {[%clk 0:01:26]} 15. cxd5 {[%clk 0:02:42]}  cxd5 {[%clk 0:01:27]} 16. Nb5 {[%clk 0:02:43]}  h4 {[%clk 0:01:24]} 17. Nd6 {[%clk 0:02:40]}  Rf8 {[%clk 0:01:22]} 18. Nb7 {[%clk 0:02:39]}  Qc7 {[%clk 0:01:20]} 19. Bxf8 {[%clk 0:02:38]}  Rxf8 {[%clk 0:01:21]} 20. Nc5 {[%clk 0:02:39]}  Nxc5 {[%clk 0:01:21]} 21. Rc1 {[%clk 0:02:38]}  h3 {[%clk 0:01:20]} 22. Rxc5 {[%clk 0:02:37]}  Qe7 {[%clk 0:01:17]} 23. g3 {[%clk 0:02:35]}  Nh7 {[%clk 0:01:17]} 24. Qb3 {[%clk 0:02:16]}  Ng5 {[%clk 0:01:16]} 25. Rfc1 {[%clk 0:02:16]}  Qf6 {[%clk 0:00:34]} 26. Rc7 {[%clk 0:02:12]}  Nf3+ {[%clk 0:00:26]} 27. Nxf3 {[%clk 0:02:11]}  exf3 {[%clk 0:00:27]} 28. Bf1 {[%clk 0:02:11]}  Qf5 {[%clk 0:00:26]} 29. Rxa7 {[%clk 0:02:09]}  Bh6 {[%clk 0:00:22]} 30. Rb7 {[%clk 0:02:08]}  Kg7 {[%clk 0:00:18]} 31. a5 {[%clk 0:02:02]}  Re8 {[%clk 0:00:18]} 32. a6 {[%clk 0:02:02]}  Bc8 {[%clk 0:00:19]} 33. Qc2 {[%clk 0:01:47]}  Qf6 {[%clk 0:00:11]} 34. Qc6 {[%clk 0:01:44]}  Re6 {[%clk 0:00:09]} 35. Qxc8 {[%clk 0:01:36]}  Bxe3 {[%clk 0:00:09]} 36. Rcc7 {[%clk 0:01:22]}  Bxf2+ {[%clk 0:00:09]} 37. Kh1 {[%clk 0:01:22]}  Qxd4 {[%clk 0:00:05]} 38. Rxf7+ {[%clk 0:01:22]}  Kh6 {[%clk 0:00:05]} 39. Qxe6 {[%clk 0:01:19]}  Bxg3 {[%clk 0:00:05]} 40. Qxh3+ {[%clk 0:01:17]}  Bh4 {[%clk 0:00:05]} 41. Rh7+ {[%clk 0:01:17]}  Kg5 {[%clk 0:00:06]} 42. Qxh4+ {[%clk 0:01:18]}  Qxh4 {[%clk 0:00:06]} 43. Rxh4 {[%clk 0:01:18]}  f2 {[%clk 0:00:07]} 44. a7 {[%clk 0:01:19]}  d4 {[%clk 0:00:08]} 45. Rxd4 {[%clk 0:01:19]}  Kf5 {[%clk 0:00:08]} 46. a8=Q {[%clk 0:01:18]} 1-0

[Event "January 9 Late 2024"]
[Site "https://www.chess.com"]
[Date "2024.01.10"]
[Round "7"]
[White "Manolache, Marius"]
[Black "Olsson, William"]
[Result "1-0"]
[Board "75"]
[TimeControl "180+1"]
[WhiteFideId "1201530"]
[BlackFideId "1741721"]
[WhiteElo "2690"]
[BlackElo "2569"]
[WhiteTeam "ROU"]
[BlackTeam "SWE"]
[WhiteClock "0:02:08"]
[BlackClock "0:00:52"]

1. d4 {[%clk 0:03:00]}  d5 {[%clk 0:02:57]} 2. Nf3 {[%clk 0:02:59]}  Nf6 {[%clk 0:02:57]} 3. c4 {[%clk 0:02:59]}  c6 {[%clk 0:02:57]} 4. Nc3 {[%clk 0:02:59]}  e6 {[%clk 0:02:57]} 5. g3 {[%clk 0:03:00]}  dxc4 {[%clk 0:02:49]} 6. Ne5 {[%clk 0:02:58]}  b5 {[%clk 0:02:48]} 7. Bg2 {[%clk 0:02:58]}  Qb6 {[%clk 0:02:35]} 8. a4 {[%clk 0:02:49]}  Bb7 {[%clk 0:02:35]} 9. O-O {[%clk 0:02:47]}  a6 {[%clk 0:02:25]} 10. e3 {[%clk 0:02:47]}  Nbd7 {[%clk 0:02:24]} 11. Nxd7 {[%clk 0:02:46]}  Nxd7 {[%clk 0:02:24]} 12. e4 {[%clk 0:02:47]}  Be7 {[%clk 0:02:21]} 13. Be3 {[%clk 0:02:46]}  c5 {[%clk 0:02:04]} 14. d5 {[%clk 0:02:45]}  Rd8 {[%clk 0:01:44]} 15. Qg4 {[%clk 0:02:43]}  O-O {[%clk 0:01:41]} 16. Rfd1 {[%clk 0:02:33]}  b4 {[%clk 0:01:39]} 17. a5 {[%clk 0:02:31]}  Qc7 {[%clk 0:01:38]} 18. Na4 {[%clk 0:02:29]}  exd5 {[%clk 0:01:35]} 19. exd5 {[%clk 0:02:29]}  Nf6 {[%clk 0:01:35]} 20. Qf5 {[%clk 0:02:27]}  g6 {[%clk 0:01:20]} 21. Bf4 {[%clk 0:02:24]}  Qd7 {[%clk 0:01:06]} 22. Qxd7 {[%clk 0:02:23]}  Rxd7 {[%clk 0:01:07]} 23. d6 {[%clk 0:02:20]}  Bxg2 {[%clk 0:00:58]} 24. dxe7 {[%clk 0:02:19]}  Rxd1+ {[%clk 0:00:57]} 25. Rxd1 {[%clk 0:02:19]}  Re8 {[%clk 0:00:58]} 26. Kxg2 {[%clk 0:02:18]}  Rxe7 {[%clk 0:00:57]} 27. Nxc5 {[%clk 0:02:15]}  Ne4 {[%clk 0:00:56]} 28. Bh6 {[%clk 0:02:11]}  f5 {[%clk 0:00:52]} 29. Rd8+ {[%clk 0:02:08]} 1-0

[Event "January 9 Late 2024"]
[Site "https://www.chess.com"]
[Date "2024.01.09"]
[Round "7"]
[White "Mendez Fortes, Eduardo Jesus"]
[Black "Skvortsov, Andrei"]
[Result "1/2-1/2"]
[Board "76"]
[TimeControl "180+1"]
[WhiteFideId "3502376"]
[BlackFideId "24108600"]
[WhiteElo "2567"]
[BlackElo "2686"]
[WhiteTeam "CUB"]
[BlackTeam "MNE"]
[WhiteClock "0:00:09"]
[BlackClock "0:00:09"]

1. e4 {[%clk 0:03:00]}  c5 {[%clk 0:02:55]} 2. Nf3 {[%clk 0:03:00]}  d6 {[%clk 0:02:55]} 3. d4 {[%clk 0:03:00]}  cxd4 {[%clk 0:02:55]} 4. Nxd4 {[%clk 0:03:00]}  Nf6 {[%clk 0:02:55]} 5. Nc3 {[%clk 0:03:01]}  g6 {[%clk 0:02:56]} 6. f3 {[%clk 0:02:59]}  Bg7 {[%clk 0:02:56]} 7. Be3 {[%clk 0:03:00]}  O-O {[%clk 0:02:57]} 8. Qd2 {[%clk 0:03:00]}  d5 {[%clk 0:02:57]} 9. e5 {[%clk 0:02:55]}  Ne8 {[%clk 0:02:57]} 10. f4 {[%clk 0:02:53]}  f6 {[%clk 0:02:55]} 11. exf6 {[%clk 0:02:49]}  Nxf6 {[%clk 0:02:56]} 12. O-O-O {[%clk 0:02:48]}  Ng4 {[%clk 0:02:54]} 13. g3 {[%clk 0:02:44]}  Nxe3 {[%clk 0:02:52]} 14. Qxe3 {[%clk 0:02:45]}  Nc6 {[%clk 0:02:52]} 15. Ne6 {[%clk 0:02:41]}  d4 {[%clk 0:02:53]} 16. Nxd8 {[%clk 0:02:10]}  dxe3 {[%clk 0:02:52]} 17. Bc4+ {[%clk 0:02:10]}  Kh8 {[%clk 0:02:53]} 18. Nxc6 {[%clk 0:01:56]}  bxc6 {[%clk 0:02:54]} 19. Rde1 {[%clk 0:01:55]}  Bh3 {[%clk 0:02:28]} 20. Rxe3 {[%clk 0:01:45]}  e5 {[%clk 0:02:28]} 21. Ne2 {[%clk 0:01:36]}  exf4 {[%clk 0:02:03]} 22. Nxf4 {[%clk 0:01:35]}  Bh6 {[%clk 0:02:03]} 23. Bb3 {[%clk 0:01:29]}  Rxf4 {[%clk 0:01:56]} 24. gxf4 {[%clk 0:01:30]}  Bxf4 {[%clk 0:01:56]} 25. Re1 {[%clk 0:01:30]}  Re8 {[%clk 0:01:55]} 26. Kd2 {[%clk 0:01:30]}  Kg7 {[%clk 0:01:48]} 27. Bc4 {[%clk 0:01:24]}  Kf6 {[%clk 0:01:40]} 28. Kd3 {[%clk 0:01:18]}  Bf5+ {[%clk 0:01:38]} 29. Re4 {[%clk 0:01:16]}  Bxh2 {[%clk 0:01:31]} 30. Kd4 {[%clk 0:01:14]}  Rd8+ {[%clk 0:01:25]} 31. Kc5 {[%clk 0:01:09]}  Bxe4 {[%clk 0:01:25]} 32. Rxe4 {[%clk 0:01:09]}  h5 {[%clk 0:01:08]} 33. Re6+ {[%clk 0:01:07]}  Kf5 {[%clk 0:01:02]} 34. Rxc6 {[%clk 0:01:06]}  Bg1+ {[%clk 0:00:57]} 35. Kb4 {[%clk 0:01:05]}  g5 {[%clk 0:00:54]} 36. Bd3+ {[%clk 0:01:05]}  Kg4 {[%clk 0:00:53]} 37. Rf6 {[%clk 0:01:04]}  Bd4 {[%clk 0:00:47]} 38. Be2+ {[%clk 0:01:02]}  Kh4 {[%clk 0:00:39]} 39. Rh6 {[%clk 0:01:02]}  g4 {[%clk 0:00:39]} 40. c3 {[%clk 0:01:00]}  Be3 {[%clk 0:00:27]} 41. Rh7 {[%clk 0:00:57]}  Kg5 {[%clk 0:00:26]} 42. c4 {[%clk 0:00:55]}  Bd4 {[%clk 0:00:25]} 43. c5 {[%clk 0:00:54]}  Rc8 {[%clk 0:00:22]} 44. Ba6 {[%clk 0:00:45]}  Rxc5 {[%clk 0:00:22]} 45. Rxa7 {[%clk 0:00:42]}  Rc2 {[%clk 0:00:19]} 46. Rd7 {[%clk 0:00:37]}  Rxb2+ {[%clk 0:00:17]} 47. Ka3 {[%clk 0:00:37]}  Bf6 {[%clk 0:00:17]} 48. Rd5+ {[%clk 0:00:37]}  Kh6 {[%clk 0:00:15]} 49. Rf5 {[%clk 0:00:36]}  Rb6 {[%clk 0:00:15]} 50. Be2 {[%clk 0:00:36]}  Kg6 {[%clk 0:00:15]} 51. Bd3 {[%clk 0:00:35]}  Kh6 {[%clk 0:00:14]} 52. Be2 {[%clk 0:00:35]}  Re6 {[%clk 0:00:14]} 53. Bd1 {[%clk 0:00:35]}  Bg5 {[%clk 0:00:13]} 54. Kb3 {[%clk 0:00:34]}  Rd6 {[%clk 0:00:12]} 55. Be2 {[%clk 0:00:32]}  Kg6 {[%clk 0:00:12]} 56. Rc5 {[%clk 0:00:30]}  Bf6 {[%clk 0:00:11]} 57. a4 {[%clk 0:00:28]}  Rd2 {[%clk 0:00:11]} 58. Bb5 {[%clk 0:00:23]}  h4 {[%clk 0:00:10]} 59. Rc4 {[%clk 0:00:20]}  Rb2+ {[%clk 0:00:10]} 60. Ka3 {[%clk 0:00:20]}  Rg2 {[%clk 0:00:08]} 61. Bc6 {[%clk 0:00:19]}  Rg1 {[%clk 0:00:06]} 62. Be4+ {[%clk 0:00:18]}  Kg5 {[%clk 0:00:05]} 63. Bc6 {[%clk 0:00:17]}  Be7+ {[%clk 0:00:05]} 64. Kb3 {[%clk 0:00:17]}  h3 {[%clk 0:00:06]} 65. a5 {[%clk 0:00:17]}  Ra1 {[%clk 0:00:06]} 66. Bd7 {[%clk 0:00:15]}  h2 {[%clk 0:00:06]} 67. Rxg4+ {[%clk 0:00:11]}  Kf6 {[%clk 0:00:06]} 68. Bc6 {[%clk 0:00:10]}  h1=Q {[%clk 0:00:04]} 69. Bxh1 {[%clk 0:00:10]}  Rxh1 {[%clk 0:00:05]} 70. Ka4 {[%clk 0:00:10]}  Ra1+ {[%clk 0:00:05]} 71. Kb5 {[%clk 0:00:10]}  Ke5 {[%clk 0:00:05]} 72. a6 {[%clk 0:00:10]}  Bd8 {[%clk 0:00:05]} 73. Ra4 {[%clk 0:00:10]}  Rb1+ {[%clk 0:00:05]} 74. Kc6 {[%clk 0:00:10]}  Rc1+ {[%clk 0:00:04]} 75. Kb5 {[%clk 0:00:07]}  Rb1+ {[%clk 0:00:02]} 76. Kc6 {[%clk 0:00:08]}  Rc1+ {[%clk 0:00:02]} 77. Kb7 {[%clk 0:00:08]}  Rb1+ {[%clk 0:00:03]} 78. Kc8 {[%clk 0:00:08]}  Bb6 {[%clk 0:00:02]} 79. Rc4 {[%clk 0:00:08]}  Kd6 {[%clk 0:00:02]} 80. Ra4 {[%clk 0:00:06]}  Kc6 {[%clk 0:00:02]} 81. a7 {[%clk 0:00:04]}  Bxa7 {[%clk 0:00:02]} 82. Rxa7 {[%clk 0:00:05]}  Rh1 {[%clk 0:00:03]} 83. Ra6+ {[%clk 0:00:05]}  Kb5 {[%clk 0:00:04]} 84. Rd6 {[%clk 0:00:05]}  Rc1+ {[%clk 0:00:04]} 85. Kb7 {[%clk 0:00:05]}  Kb4 {[%clk 0:00:05]} 86. Rb6+ {[%clk 0:00:05]}  Ka3 {[%clk 0:00:06]} 87. Ra6+ {[%clk 0:00:05]}  Kb2 {[%clk 0:00:07]} 88. Rb6+ {[%clk 0:00:06]}  Kc2 {[%clk 0:00:08]} 89. Ra6 {[%clk 0:00:07]}  Kd2 {[%clk 0:00:09]} 90. Rb6 {[%clk 0:00:08]}  Rc2 {[%clk 0:00:09]} 91. Rc6 {[%clk 0:00:09]}  Rxc6 {[%clk 0:00:09]} 92. Kxc6 {[%clk 0:00:09]} 1/2-1/2